lending/lending_fUSD_20250913
["ID","MTS","AMOUNT","RATE_DAILY","PERIOD"]
[385315842,1757769033959,-205.430482,0.000271,7]
[385315843,1757769033968,-907.027847,0.000271,7]
[385315844,1757769033978,-205.430482,0.000271,7]
[385315845,1757769033988,-197.966167,0.000271,7]
[385315846,1757769033997,-151.0,0.000271,7]
[385315847,1757769034007,-151.0,0.000271,7]
[385315848,1757769034018,-282.703506,0.000271,7]
[385315849,1757769034028,-197.883304,0.000271,7]
[385315850,1757769034037,-151.322865,0.000271,7]
[385315851,1757769034047,-168.0,0.00027236,2]
[385315852,1757769034056,-440.0,0.0002725,2]
[385315853,1757769034066,-151.0,0.00027277,7]
[385315854,1757769034076,-153.426333,0.00027277,7]
[385315855,1757769034085,-151.744574,0.00027277,7]
[385315856,1757769034094,-151.0,0.00027277,7]
[385315857,1757769034103,-151.0,0.00027277,7]
[385315858,1757769034114,-151.0,0.00027277,7]
[385315859,1757769034123,-151.0,0.00027277,7]
[385315860,1757769034132,-151.0,0.00027277,7]
[385315861,1757769034142,-160.0,0.00027294,2]
[385315862,1757769034151,-151.0,0.00027308,7]
[385315863,1757769034161,-151.0,0.00027308,7]
[385315864,1757769034170,-151.0,0.00027308,7]
[385315865,1757769034179,-151.0,0.00027308,7]
[385315866,1757769034189,-151.0,0.00027308,7]
[385315867,1757769034198,-151.0,0.00027308,7]
[385315868,1757769034207,-151.0,0.00027308,7]
[385315869,1757769034217,-151.0,0.00027308,7]
[385315870,1757769034227,-198.381434,0.00027308,7]
[385315871,1757769034237,-176.70101195,0.00027345,2]
[385315872,1757769034247,-4299.47262337,0.0002739,7]
[385315873,1757769034256,-151.0,0.00027397,7]
[385315874,1757769034266,-151.0,0.00027397,7]
[385315875,1757769034275,-150.44,0.00027397,2]
[385315876,1757769034284,-151.0,0.00027397,7]
[385315877,1757769034294,-151.0,0.00027397,7]
[385315878,1757769034303,-3843.51288373,0.000274,2]
[385315879,1757769034313,-420.0,0.00027404,2]
[385315880,1757769034322,-420.0,0.00027404,2]
[385315881,1757769034332,-166.67,0.00027524,2]
[385315882,1757769034342,-492.0,0.00027528,2]
[385315883,1757769034351,-163.28,0.00027759,2]
[385315884,1757769034360,-300.0,0.00027768,10]
[385315885,1757769034370,-300.0,0.00027768,10]
[385315886,1757769034379,-151.0,0.00027769,7]
[385315887,1757769034389,-151.0,0.00027769,7]
[385315888,1757769034399,-151.0,0.00027769,7]
[385315889,1757769034408,-151.0,0.00027769,7]
[385315890,1757769034418,-158.687339,0.00027769,7]
[385315891,1757769034427,-281.398184,0.00027769,7]
[385315892,1757769034435,-281.398184,0.00027769,7]
[385315893,1757769034444,-281.398184,0.00027769,7]
[385315894,1757769034453,-151.0,0.00027769,7]
[385315895,1757769034462,-281.398184,0.00027769,7]
[385315896,1757769034472,-151.0,0.00027769,7]
[385315897,1757769034482,-151.0,0.00027769,7]
[385315898,1757769034490,-151.0,0.00027769,7]
[385315899,1757769034499,-151.0,0.00027769,7]
[385315900,1757769034508,-151.0,0.00027769,7]
[385315901,1757769034518,-151.0,0.00027769,7]
[385315902,1757769034527,-151.0,0.00027769,7]
[385315903,1757769034536,-151.0,0.00027769,7]
[385315904,1757769034546,-151.0,0.00027769,7]
[385315905,1757769034554,-194.376146,0.00027769,7]
[385315906,1757769034564,-151.0,0.00027769,7]
[385315907,1757769034572,-151.0,0.00027769,7]
[385315908,1757769034581,-151.0,0.00027769,7]
[385315909,1757769034590,-151.0,0.00027769,7]
[385315910,1757769034599,-151.0,0.00027769,7]
[385315911,1757769034608,-151.0,0.00027769,7]
[385315912,1757769034616,-151.0,0.00027769,7]
[385315913,1757769034625,-151.0,0.00027769,7]
[385315914,1757769034634,-151.0,0.00027769,7]
[385315915,1757769034642,-151.0,0.00027769,7]
[385315916,1757769034651,-151.0,0.00027769,7]
[385315917,1757769034660,-151.0,0.00027769,7]
[385315918,1757769034668,-151.0,0.00027769,7]
[385315919,1757769034678,-151.0,0.00027769,7]
[385315920,1757769034687,-279.604558,0.00027769,7]
[385315921,1757769034695,-151.0,0.00027769,7]
[385315922,1757769034704,-213.856774,0.00027769,7]
[385315923,1757769034713,-205.801497,0.00027769,7]
[385315924,1757769034723,-205.801497,0.00027769,7]
[385315925,1757769034731,-205.801497,0.00027769,7]
[385315926,1757769034741,-205.801497,0.00027769,7]
[385315927,1757769034750,-151.0,0.00027769,7]
[385315928,1757769034759,-151.0,0.00027769,7]
[385315929,1757769034768,-157.231792,0.00027769,7]
[385315930,1757769034777,-907.027847,0.00027769,7]
[385315931,1757769034786,-151.0,0.00027769,7]
[385315932,1757769034795,-205.430482,0.00027769,7]
[385315933,1757769034804,-907.027847,0.00027769,7]
[385315934,1757769034811,-151.0,0.00027769,7]
[385315935,1757769034820,-205.430482,0.00027769,7]
[385315936,1757769034826,-907.027847,0.00027769,7]
[385315937,1757769034832,-151.0,0.00027769,7]
[385315938,1757769034839,-205.430482,0.00027769,7]
[385315939,1757769034845,-907.027847,0.00027769,7]
[385315940,1757769034851,-205.430482,0.00027769,7]
[385315941,1757769034857,-151.0,0.00027769,7]
[385315942,1757769034864,-151.0,0.00027769,7]
[385315943,1757769034870,-281.28941039,0.00027769,2]
[385315944,1757769034877,-331.4062726,0.00027769,2]
[385315945,1757769034884,-6262.21023807,0.00027769,2]
[385315946,1757769034894,-3289.9576274,0.00027769,2]
[385315947,1757769034900,-646.65982734,0.00027769,2]
[385315948,1757769034906,-250.0,0.00027769,2]
[385315949,1757769034913,-277.35679052,0.00027769,2]
[385315950,1757769034921,-341.79161456,0.00027769,2]
[385315951,1757769034928,-500.0,0.00027769,2]
[385315952,1757769034936,-151.70159109,0.00027769,2]
[385315953,1757769034946,-513.64349793,0.00027769,2]
[385315954,1757769034953,-500.0,0.00027769,2]
[385315955,1757769034959,-261.53416359,0.00027769,2]
[385315956,1757769034967,-500.0,0.00027769,2]
[385315957,1757769034974,-162.380719,0.00027769,2]
[385315958,1757769034980,-1000.0,0.00027769,2]
[385315959,1757769034986,-1000.0,0.00027769,2]
[385315960,1757769034993,-1000.0,0.00027769,2]
[385315961,1757769035000,-153.0397454,0.00027769,2]
[385315962,1757769035006,-1000.0,0.00027769,2]
[385315963,1757769035012,-1000.0,0.00027769,2]
[385315964,1757769035018,-1000.0,0.00027769,2]
[385315965,1757769035025,-1000.0,0.00027769,2]
[385315966,1757769035032,-880.79490891,0.00027769,2]
[385315967,1757769035041,-9277.70049129,0.00027814,2]
[385315968,1757769035051,-151.0,0.00027824,7]
[385315969,1757769035060,-151.0,0.00027824,7]
[385315970,1757769035069,-154.356585,0.00027824,7]
[385315971,1757769035078,-9905.5980765,0.00027824,2]
[385315972,1757769035087,-3843.51288373,0.00027855,2]
[385315973,1757769035097,-4984.52552255,0.00027879,2]
[385315974,1757769035106,-900.0,0.00027881,2]
[385315975,1757769035116,-168.0,0.00028011,2]
[385315976,1757769035126,-151.0,0.00028012,7]
[385315977,1757769035135,-151.0,0.00028012,7]
[385315978,1757769035145,-1481.1444,0.00028037,2]
[385315979,1757769035155,-438.98,0.0002812,2]
[385315980,1757769035165,-151.0,0.00028203,7]
[385315981,1757769035175,-151.0,0.00028203,7]
[385315982,1757769035184,-151.0,0.00028203,7]
[385315983,1757769035194,-151.0,0.00028203,7]
[385315984,1757769035204,-151.0,0.00028203,7]
[385315985,1757769035213,-279.1789,0.00028203,7]
[385315986,1757769035224,-160.0,0.00028246,2]
[385315987,1757769035234,-163.28,0.00028289,2]
[385315988,1757769035245,-9277.70049129,0.000283,2]
[385315989,1757769035255,-3843.51288373,0.0002831,2]
[385315990,1757769035265,-300.0,0.00028316,10]
[385315991,1757769035474,-151.0,0.00028317,7]
[385315992,1757769035484,-153.888406,0.00028317,7]
[385315993,1757769035494,-151.601506,0.00028317,7]
[385315994,1757769035504,-151.0,0.00028317,7]
[385315995,1757769035514,-151.0,0.00028317,7]
[385315996,1757769035532,-151.0,0.00028317,7]
[385315997,1757769035544,-151.0,0.00028317,7]
[385315998,1757769035554,-157.959442,0.00028317,7]
[385315999,1757769035563,-151.0,0.00028317,7]
[385316000,1757769035572,-151.0,0.00028317,7]
[385316001,1757769035583,-151.0,0.00028317,7]
[385316002,1757769035592,-280.393684,0.00028317,7]
[385316003,1757769035602,-151.0,0.00028317,7]
[385316004,1757769035611,-151.0,0.00028317,7]
[385316005,1757769035621,-151.0,0.00028317,7]
[385316006,1757769035630,-281.398184,0.00028317,7]
[385316007,1757769035639,-281.398184,0.00028317,7]
[385316008,1757769035649,-281.398184,0.00028317,7]
[385316009,1757769035659,-151.0,0.00028317,7]
[385316010,1757769035668,-281.398184,0.00028317,7]
[385316011,1757769035678,-151.0,0.00028317,7]
[385316012,1757769035687,-151.0,0.00028317,7]
[385316013,1757769035696,-151.0,0.00028317,7]
[385316014,1757769035706,-151.0,0.00028317,7]
[385316015,1757769035715,-201.60826,0.00028317,7]
[385316016,1757769035725,-151.0,0.00028317,7]
[385316017,1757769035735,-151.0,0.00028317,7]
[385316018,1757769035745,-198.573864,0.00028317,7]
[385316019,1757769035755,-151.0,0.00028317,7]
[385316020,1757769035764,-151.0,0.00028317,7]
[385316021,1757769035774,-151.0,0.00028317,7]
[385316022,1757769035783,-151.0,0.00028317,7]
[385316023,1757769035792,-152.144213,0.00028317,7]
[385316024,1757769035802,-151.0,0.00028317,7]
[385316025,1757769035812,-151.0,0.00028317,7]
[385316026,1757769035822,-151.0,0.00028317,7]
[385316027,1757769035832,-151.0,0.00028317,7]
[385316028,1757769035842,-244.606816,0.00028317,7]
[385316029,1757769035851,-151.0,0.00028317,7]
[385316030,1757769035861,-151.0,0.00028317,7]
[385316031,1757769035870,-151.0,0.00028317,7]
[385316032,1757769035879,-151.0,0.00028317,7]
[385316033,1757769035889,-151.0,0.00028317,7]
[385316034,1757769035898,-151.0,0.00028317,7]
[385316035,1757769035908,-205.801497,0.00028317,7]
[385316036,1757769035918,-205.801497,0.00028317,7]
[385316037,1757769035927,-205.801497,0.00028317,7]
[385316038,1757769035937,-205.801497,0.00028317,7]
[385316039,1757769035948,-151.0,0.00028317,7]
[385316040,1757769035958,-151.0,0.00028317,7]
[385316041,1757769035967,-907.027847,0.00028317,7]
[385316042,1757769035976,-151.0,0.00028317,7]
[385316043,1757769035987,-205.430482,0.00028317,7]
[385316044,1757769035996,-907.027847,0.00028317,7]
[385316045,1757769036006,-151.0,0.00028317,7]
[385316046,1757769036016,-205.430482,0.00028317,7]
[385316047,1757769036026,-907.027847,0.00028317,7]
[385316048,1757769036035,-151.0,0.00028317,7]
[385316049,1757769036044,-907.027847,0.00028317,7]
[385316050,1757769036053,-205.430482,0.00028317,7]
[385316051,1757769036062,-205.430482,0.00028317,7]
[385316052,1757769036072,-151.0,0.00028317,7]
[385316053,1757769036081,-151.0,0.00028317,7]
[385316054,1757769036090,-153.124401,0.00028372,7]
[385316055,1757769036099,-151.0,0.00028372,7]
[385316056,1757769036109,-153.262122,0.00028427,7]
[385316057,1757769036118,-151.0,0.00028427,7]
[385316058,1757769036128,-151.0,0.00028427,7]
[385316059,1757769036137,-151.0,0.00028427,7]
[385316060,1757769036147,-211.232156,0.00028427,7]
[385316061,1757769036156,-431.0,0.0002843,2]
[385316062,1757769036165,-502.90991697,0.00028483,5]
[385316063,1757769036175,-168.0,0.0002862,2]
[385316064,1757769036184,-207.07575203,0.00028649,2]
[385316065,1757769036193,-151.0,0.00028673,7]
[385316066,1757769036203,-151.0,0.00028673,7]
[385316067,1757769036212,-347.0,0.00028725,2]
[385316068,1757769036227,-9277.70049129,0.00028729,2]
[385316069,1757769036237,-163.28,0.00028729,2]
[385316070,1757769036246,-163.28,0.00028738,2]
[385316071,1757769036256,-9344.51606721,0.00028739,2]
[385316072,1757769036265,-20535.75975369,0.00028748,2]
[385316073,1757769036859,-2189.88318195,0.00028748,2]
[385316074,1757769036869,-2836.15656458,0.00028748,2]
[385316075,1757769036963,-2502.4042631,0.00028748,2]
[385316092,1757769038567,-6005.30467365,0.00024657,7]
[385316093,1757769038578,-452.11000654,0.00024657,7]
[385316094,1757769038593,-3562.96878581,0.00024657,7]
[385316095,1757769038603,-10020.383466,0.00025149,7]
[385316096,1757769038612,-151.0,0.000271,7]
[385316097,1757769038621,-151.0,0.00027769,7]
[385316098,1757769038630,-151.0,0.0002812,7]
[385316099,1757769038639,-239.417324,0.00028739,7]
[385316100,1757769038648,-3017.29297189,0.00028748,2]
[385316101,1757769038660,-364.73999997,0.00028748,2]
[385316102,1757769038670,-505.47,0.00028748,2]
[385316103,1757769039912,-2168.40482368,0.00024657,7]
[385316104,1757769039926,-7851.97864232,0.00024657,7]
[385316105,1757769039935,-150.866426,0.00024657,7]
[385316106,1757769039951,-150.866426,0.00025149,7]
[385316107,1757769039960,-7962.03467545,0.00028748,2]
[385316108,1757769039972,-11635.3367787,0.00028748,2]
[385316109,1757769039985,-23612.00000004,0.00028748,2]
[385316110,1757769040056,-401.72457247,0.00028748,2]
[385316129,1757769043989,-7083.038194,0.00024657,7]
[385316130,1757769043999,-2335.30484844,0.00024657,7]
[385316137,1757769045755,-2528.26191729,0.00024657,7]
[385316138,1757769045810,-553.3519233,0.00024657,7]
[385316139,1757769045822,-1666.11950497,0.00024657,7]
[385316140,1757769045831,-7083.038194,0.00025149,7]
[385316141,1757769045840,-366.96953927,0.0002659,2]
[385316142,1757769045849,-151.0,0.000271,7]
[385316143,1757769045859,-151.0,0.000271,7]
[385316144,1757769045868,-151.0,0.000271,7]
[385316145,1757769045878,-151.0,0.000271,7]
[385316146,1757769045887,-151.0,0.000271,7]
[385316147,1757769045896,-151.0,0.00027769,7]
[385316148,1757769045905,-151.0,0.00027769,7]
[385316149,1757769045915,-151.0,0.00027769,7]
[385316150,1757769045924,-151.0,0.00027769,7]
[385316151,1757769045934,-151.0,0.00027769,7]
[385316152,1757769045947,-255.101896,0.0002812,7]
[385316153,1757769045956,-151.0,0.0002812,7]
[385316154,1757769045965,-151.0,0.0002812,7]
[385316155,1757769045974,-151.0,0.0002812,7]
[385316156,1757769045984,-151.0,0.0002812,7]
[385316157,1757769045994,-151.0,0.00028739,7]
[385316158,1757769046004,-151.0,0.00028739,7]
[385316159,1757769046016,-151.0,0.00028739,7]
[385316160,1757769046027,-151.0,0.00028748,7]
[385316161,1757769046037,-151.0,0.00028748,7]
[385316162,1757769046047,-47784.71055816,0.00028748,2]
[385316163,1757769046146,-288.185466,0.00028739,7]
[385316164,1757769046155,-5400.314534,0.00028748,2]
[385316165,1757769046166,-12323.33504306,0.00028748,2]
[385316166,1757769046275,-3389.15183586,0.00028748,2]
[385316167,1757769049024,999.0,0.00032876,120]
[385316168,1757769170620,1509.54874028,0.00033,120]
[385316169,1757769246615,999.0,0.00032876,120]
[385316171,1757769507173,999.0,0.00032876,120]
[385316172,1757769585519,400.0,0.00033,120]
[385316173,1757769650487,400.0,0.00033,120]
[385316174,1757769672725,400.0,0.00033,120]
[385316175,1757769685442,400.0,0.00033,120]
[385316176,1757769699582,400.0,0.00033,120]
[385316177,1757769737341,999.0,0.00032876,120]
[385316178,1757769740699,400.0,0.00033,120]
[385316181,1757769997710,999.0,0.00032876,120]
[385316182,1757770002140,-160.21,0.00024656,2]
[385316183,1757770002162,-224.05856018,0.00024799,2]
[385316184,1757770002184,-93.8637044,0.00024899,2]
[385316186,1757770019443,-272.1948901,0.00024,5]
[385316188,1757770023092,-284.22136863,0.00024,5]
[385316189,1757770025417,-380.82451785,0.00024,5]
[385316215,1757770232120,-4062.76787546,0.00024,5]
[385316216,1757770232136,-151.0,0.00024893,2]
[385316217,1757770232148,-151.0,0.00024893,2]
[385316218,1757770232157,-845.94916255,0.00024898,2]
[385316219,1757770232167,-151.0,0.00024898,2]
[385316220,1757770232176,-300.0,0.00024898,2]
[385316221,1757770232185,-300.0,0.00024898,2]
[385316222,1757770232195,-1200.0,0.00024898,2]
[385316223,1757770232205,-300.0,0.00024898,2]
[385316224,1757770232214,-300.0,0.00024899,2]
[385316225,1757770232225,-151.05,0.000249,2]
[385316226,1757770232236,-162.4837517,0.000249,2]
[385316227,1757770232246,-2126.98108777,0.000249,2]
[385316228,1757770232256,-1000.0,0.00025,2]
[385316229,1757770232265,-174.36,0.00025029,2]
[385316230,1757770232275,-1100.0,0.00026,3]
[385316231,1757770232285,-556.41625873,0.000264,3]
[385316232,1757770232295,-380.82451785,0.000264,3]
[385316236,1757770232754,-198.0,0.00026976,2]
[385316237,1757770232782,-420.0,0.00026976,2]
[385316238,1757770232791,-2000.0,0.000271,2]
[385316239,1757770232802,-225.22,0.00027116,2]
[385316240,1757770232814,-277.35679052,0.00027163,2]
[385316241,1757770232823,-150.0,0.00027222,7]
[385316242,1757770232833,-5000.0,0.00027287,2]
[385316243,1757770232842,-188.88,0.00027329,2]
[385316244,1757770232851,-150.0,0.00027345,2]
[385316245,1757770232860,-150.00000001,0.00027345,2]
[385316246,1757770232869,-1575.57,0.00027389,2]
[385316247,1757770232879,-150.44,0.00027397,2]
[385316248,1757770232887,-263.0,0.00027645,2]
[385316249,1757770232899,-317.01184086,0.00027654,2]
[385316250,1757770232909,-2300.93189129,0.00027655,2]
[385316251,1757770232921,-1619.56561321,0.00027655,2]
[385316252,1757770232932,-5654.44438679,0.00027655,2]
[385316253,1757770232946,-818.66431453,0.00027655,2]
[385316254,1757770232966,-654.36828413,0.00027655,2]
[385316255,1757770233089,-757.22059496,0.00027655,2]
[385316256,1757770233101,-8303.94155569,0.00027655,2]
[385316257,1757770233110,-55.90656365,0.00027655,2]
[385316258,1757770237015,-768.72525495,0.00027655,2]
[385316259,1757770237026,-523.49,0.00027732,2]
[385316260,1757770237035,-164.71686166,0.0002783,2]
[385316261,1757770237047,-98.28313834,0.0002783,2]
[385316262,1757770237057,-4601.31589208,0.00027866,2]
[385316263,1757770237160,-702.73856019,0.00027866,2]
[385316271,1757770237984,-1364.35091044,0.00027866,2]
[385316272,1757770237996,-401.74289199,0.00027866,2]
[385316273,1757770238007,-1476.58992313,0.00027885,2]
[385316274,1757770238017,-203.04,0.00027918,2]
[385316275,1757770238027,-174.66,0.00027918,2]
[385316276,1757770238037,-168.0,0.00028055,2]
[385316277,1757770238047,-327.0,0.00028195,2]
[385316278,1757770238059,-327.0,0.00028252,7]
[385316279,1757770238068,-2395.0,0.00028252,2]
[385316280,1757770238078,-168.0,0.0002831,2]
[385316281,1757770238087,-188.88,0.00028354,2]
[385316282,1757770238098,-327.0,0.00028396,2]
[385316283,1757770238107,-328.0,0.00028468,7]
[385316284,1757770238119,-225.22,0.00028472,2]
[385316285,1757770238128,-150.0,0.00028493,2]
[385316286,1757770238137,-282.58293069,0.00028493,2]
[385316287,1757770238147,-150.0,0.00028493,2]
[385316288,1757770238157,-150.0,0.00028493,2]
[385316289,1757770238166,-150.0,0.00028493,2]
[385316290,1757770238175,-150.0,0.00028493,2]
[385316291,1757770238186,-150.0,0.00028493,2]
[385316292,1757770238195,-150.0,0.00028493,2]
[385316293,1757770238206,-150.70483784,0.00028493,2]
[385316294,1757770238215,-150.0,0.00028493,2]
[385316295,1757770238224,-150.0,0.00028493,2]
[385316296,1757770238234,-150.0,0.00028493,2]
[385316297,1757770238243,-151.17386151,0.00028493,2]
[385316298,1757770238253,-150.0,0.00028493,2]
[385316299,1757770238262,-150.0,0.00028493,2]
[385316300,1757770238271,-150.0,0.00028493,2]
[385316301,1757770238281,-500.0,0.00028493,2]
[385316302,1757770238290,-153.57,0.00028493,2]
[385316303,1757770238299,-500.0,0.00028493,2]
[385316304,1757770238309,-150.0,0.00028493,2]
[385316305,1757770238318,-150.0,0.00028493,2]
[385316306,1757770238327,-150.0,0.00028493,2]
[385316307,1757770238336,-150.0,0.00028493,2]
[385316308,1757770238345,-152.27174978,0.00028493,2]
[385316309,1757770238354,-150.0,0.00028493,2]
[385316310,1757770238363,-1000.0,0.00028493,2]
[385316311,1757770238372,-1000.0,0.00028493,2]
[385316312,1757770238381,-1000.0,0.00028493,2]
[385316314,1757770238391,-158.87595786,0.00028493,2]
[385316316,1757770238403,-790.77536102,0.00028493,2]
[385316320,1757770238414,-50.34868112,0.00028493,2]
[385316323,1757770238423,-1000.0,0.00028493,2]
[385316326,1757770238432,-1000.0,0.00028493,2]
[385316329,1757770238441,-1000.0,0.00028493,2]
[385316332,1757770238451,-1000.0,0.00028493,2]
[385316335,1757770238460,-1000.0,0.00028493,2]
[385316337,1757770238469,-1000.0,0.00028493,2]
[385316339,1757770238478,-1000.0,0.00028493,2]
[385316341,1757770238489,-130.3787677,0.00028493,2]
[385316344,1757770238510,-869.6212323,0.00028493,2]
[385316346,1757770238520,-1000.0,0.00028493,2]
[385316348,1757770238529,-1000.0,0.00028493,2]
[385316350,1757770238538,-1000.0,0.00028493,2]
[385316352,1757770238547,-1000.0,0.00028493,2]
[385316354,1757770238556,-1000.0,0.00028493,2]
[385316356,1757770238566,-1000.0,0.00028493,2]
[385316358,1757770238576,-397.3787677,0.00028493,2]
[385316360,1757770238588,-602.6212323,0.00028493,2]
[385316362,1757770238597,-242.00363045,0.00028493,2]
[385316365,1757770238608,-757.99636955,0.00028493,2]
[385316367,1757770238617,-1000.0,0.00028493,2]
[385316369,1757770238626,-1000.0,0.00028493,2]
[385316371,1757770238635,-1000.0,0.00028493,2]
[385316373,1757770238825,-1000.0,0.00028493,2]
[385316374,1757770238848,-1000.0,0.00028493,2]
[385316375,1757770238858,-1000.0,0.00028493,2]
[385316376,1757770238867,-1000.0,0.00028493,2]
[385316377,1757770238877,-1000.0,0.00028493,2]
[385316378,1757770238886,-1000.0,0.00028493,2]
[385316379,1757770238895,-1000.0,0.00028493,2]
[385316380,1757770238905,-1000.0,0.00028493,2]
[385316381,1757770238914,-1000.0,0.00028493,2]
[385316382,1757770238924,-1000.0,0.00028493,2]
[385316383,1757770238934,-1000.0,0.00028493,2]
[385316384,1757770238943,-621.02642439,0.00028493,2]
[385316385,1757770238992,-378.97357561,0.00028493,2]
[385316386,1757770239002,-1000.0,0.00028493,2]
[385316387,1757770239011,-1000.0,0.00028493,2]
[385316388,1757770239020,-714.00379958,0.00028493,2]
[385316389,1757770239033,-285.99620042,0.00028493,2]
[385316390,1757770239043,-1000.0,0.00028493,2]
[385316391,1757770239052,-1000.0,0.00028493,2]
[385316392,1757770239061,-1000.0,0.00028493,2]
[385316393,1757770239071,-1000.0,0.00028493,2]
[385316394,1757770239080,-269.64856187,0.00028493,2]
[385316395,1757770239099,-730.35143813,0.00028493,2]
[385316396,1757770239109,-517.5877132,0.00028493,2]
[385316397,1757770239124,-482.4122868,0.00028493,2]
[385316398,1757770239133,-1000.0,0.00028493,2]
[385316399,1757770239142,-1000.0,0.00028493,2]
[385316400,1757770239151,-1000.0,0.00028493,2]
[385316401,1757770239160,-1000.0,0.00028493,2]
[385316402,1757770239169,-1000.0,0.00028493,2]
[385316403,1757770239178,-1000.0,0.00028493,2]
[385316404,1757770239187,-1000.0,0.00028493,2]
[385316405,1757770239197,-1000.0,0.00028493,2]
[385316406,1757770239206,-166.6251029,0.00028493,2]
[385316413,1757770240299,-833.3748971,0.00028493,2]
[385316414,1757770240308,-1000.0,0.00028493,2]
[385316415,1757770240318,-1413.41190306,0.00028493,2]
[385316416,1757770240327,-287.61899177,0.00028532,2]
[385316417,1757770240337,-223.47689381,0.00028545,2]
[385316418,1757770240396,-709.54325852,0.00028545,2]
[385316419,1757770240417,-913.49849195,0.00028545,2]
[385316420,1757770240428,-475.17191183,0.00028623,2]
[385316421,1757770240475,-501.97000001,0.00028623,2]
[385316422,1757770240487,-427.24319623,0.00028623,2]
[385316425,1757770240546,-628.30627064,0.00028623,2]
[385316427,1757770240556,-256.87867749,0.00028647,2]
[385316429,1757770240565,-291.838836,0.00028648,7]
[385316431,1757770240574,-221.668924,0.00028648,7]
[385316433,1757770240583,-151.0,0.00028648,7]
[385316435,1757770240593,-151.0,0.00028648,7]
[385316437,1757770240602,-151.0,0.00028648,7]
[385316439,1757770240611,-151.0,0.00028648,7]
[385316441,1757770240621,-151.0,0.00028648,7]
[385316442,1757770240631,-151.0,0.00028648,7]
[385316443,1757770240641,-151.0,0.00028648,7]
[385316444,1757770240653,-151.0,0.00028648,7]
[385316445,1757770240666,-151.0,0.00028648,7]
[385316446,1757770240676,-151.0,0.00028648,7]
[385316447,1757770240686,-151.0,0.00028648,7]
[385316448,1757770240695,-301.923912,0.00028648,7]
[385316449,1757770240705,-151.0,0.00028648,7]
[385316450,1757770240714,-284.839154,0.00028648,7]
[385316451,1757770240723,-151.0,0.00028648,7]
[385316452,1757770240733,-151.0,0.00028648,7]
[385316453,1757770240743,-151.0,0.00028648,7]
[385316454,1757770240752,-151.0,0.00028648,7]
[385316455,1757770240762,-181.405569,0.00028648,7]
[385316456,1757770240771,-181.405569,0.00028648,7]
[385316457,1757770240782,-181.405569,0.00028648,7]
[385316458,1757770240792,-181.405569,0.00028648,7]
[385316459,1757770240802,-151.0,0.00028648,7]
[385316460,1757770240812,-151.0,0.00028648,7]
[385316461,1757770240821,-25140.52505715,0.00028648,2]
[385316470,1757770243414,-413.79362022,0.00028648,2]
[385316471,1757770243426,-464.76347741,0.00028648,2]
[385316472,1757770243438,-524.68431067,0.00028648,2]
[385316473,1757770243469,-4617.375812,0.00028648,2]
[385316474,1757770243584,-1460.06874367,0.00028648,2]
[385316475,1757770243630,-53.12580717,0.00028648,2]
[385316476,1757770243650,-548.49297171,0.00028648,2]
[385316477,1757770243659,-801.85050141,0.00028648,2]
[385316487,1757770246175,-618.94329861,0.00028648,2]
[385316488,1757770246564,-31649.47859998,0.00028648,2]
[385316489,1757770246574,-327.0,0.00028723,7]